[Event "Titled Tuesday Blitz November 07 Early 2023"]
[White "Czopor, Maciej"]
[Black "Mamedov, Edgar"]
[WhiteFideId "21805431"]
[BlackFideId "13739980"]
[WhiteElo "2557"]
[BlackElo "2688"]
[Result "1-0"]
[Round "9"]
[TimeControl "180+1"]
[Date "2023.11.07"]
[WhiteClock "0:00:27"]
[BlackClock "0:00:10"]
[Board "53"]

1. d4 {[%clk 0:02:59]}  d5 {[%clk 0:02:59]} 2. Nf3 {[%clk 0:02:59]}  Nf6 {[%clk 0:02:59]} 3. Bf4 {[%clk 0:02:59]}  e6 {[%clk 0:02:55]} 4. e3 {[%clk 0:03:00]}  Bd6 {[%clk 0:02:54]} 5. Bg3 {[%clk 0:03:00]}  O-O {[%clk 0:02:53]} 6. Nbd2 {[%clk 0:03:00]}  b6 {[%clk 0:02:52]} 7. c3 {[%clk 0:02:58]}  Bb7 {[%clk 0:02:52]} 8. Bd3 {[%clk 0:02:58]}  c5 {[%clk 0:02:52]} 9. Ne5 {[%clk 0:02:57]}  Nc6 {[%clk 0:02:50]} 10. f4 {[%clk 0:02:51]}  Ne7 {[%clk 0:02:50]} 11. Bh4 {[%clk 0:02:51]}  Nf5 {[%clk 0:02:35]} 12. Bf2 {[%clk 0:02:51]}  Ne4 {[%clk 0:02:31]} 13. Nxe4 {[%clk 0:02:27]}  dxe4 {[%clk 0:02:29]} 14. Bb5 {[%clk 0:02:16]}  cxd4 {[%clk 0:02:28]} 15. cxd4 {[%clk 0:02:16]}  Bb4+ {[%clk 0:02:25]} 16. Kf1 {[%clk 0:02:16]}  a6 {[%clk 0:02:24]} 17. Be2 {[%clk 0:02:16]}  Ne7 {[%clk 0:02:15]} 18. a3 {[%clk 0:02:13]}  Bd6 {[%clk 0:02:14]} 19. g4 {[%clk 0:02:10]}  f6 {[%clk 0:02:09]} 20. Nc4 {[%clk 0:02:10]}  Bc7 {[%clk 0:02:08]} 21. Rc1 {[%clk 0:02:09]}  b5 {[%clk 0:02:07]} 22. Nd2 {[%clk 0:02:09]}  e5 {[%clk 0:02:05]} 23. dxe5 {[%clk 0:01:57]}  fxe5 {[%clk 0:02:05]} 24. f5 {[%clk 0:01:58]}  g6 {[%clk 0:01:59]} 25. Rg1 {[%clk 0:01:22]}  gxf5 {[%clk 0:01:54]} 26. gxf5+ {[%clk 0:01:23]}  Kh8 {[%clk 0:01:53]} 27. Nb3 {[%clk 0:01:17]}  Nxf5 {[%clk 0:01:41]} 28. Qxd8 {[%clk 0:01:15]}  Bxd8 {[%clk 0:01:41]} 29. Ke1 {[%clk 0:01:06]}  Bb6 {[%clk 0:01:39]} 30. Nc5 {[%clk 0:01:06]}  Rac8 {[%clk 0:01:32]} 31. b4 {[%clk 0:01:06]}  Bxc5 {[%clk 0:01:29]} 32. Rxc5 {[%clk 0:01:07]}  Rxc5 {[%clk 0:01:28]} 33. bxc5 {[%clk 0:01:07]}  Bc6 {[%clk 0:01:08]} 34. Rg5 {[%clk 0:01:05]}  a5 {[%clk 0:00:54]} 35. Bg4 {[%clk 0:01:01]}  Nh6 {[%clk 0:00:53]} 36. Be6 {[%clk 0:00:49]}  Re8 {[%clk 0:00:52]} 37. Bb3 {[%clk 0:00:41]}  a4 {[%clk 0:00:31]} 38. Ba2 {[%clk 0:00:40]}  Bd7 {[%clk 0:00:16]} 39. Bg3 {[%clk 0:00:27]}  Nf5 {[%clk 0:00:10]} 40. Bxe5+ {[%clk 0:00:27]} 1-0


[Site "https://www.chess.com"]

[Event "Titled Tuesday Blitz November 07 Early 2023"]
[White "Godzwon, Iwo"]
[Black "Lymar, Vladislav"]
[WhiteFideId "21802483"]
[BlackFideId "14162180"]
[WhiteElo "2688"]
[BlackElo "2554"]
[Result "1-0"]
[Round "9"]
[TimeControl "180+1"]
[Date "2023.11.07"]
[WhiteClock "0:02:04"]
[BlackClock "0:00:13"]
[Board "54"]

1. e4 {[%clk 0:02:56]}  d6 {[%clk 0:02:56]} 2. d4 {[%clk 0:02:55]}  Nf6 {[%clk 0:02:57]} 3. Nc3 {[%clk 0:02:56]}  e5 {[%clk 0:02:58]} 4. Nge2 {[%clk 0:02:56]}  Be7 {[%clk 0:02:56]} 5. f3 {[%clk 0:02:51]}  h5 {[%clk 0:02:38]} 6. Be3 {[%clk 0:02:51]}  Nbd7 {[%clk 0:02:37]} 7. Qd2 {[%clk 0:02:51]}  c6 {[%clk 0:02:35]} 8. Rg1 {[%clk 0:02:46]}  b5 {[%clk 0:02:24]} 9. g3 {[%clk 0:02:39]}  b4 {[%clk 0:02:12]} 10. Nd1 {[%clk 0:02:39]}  exd4 {[%clk 0:02:05]} 11. Nxd4 {[%clk 0:02:39]}  Ne5 {[%clk 0:01:35]} 12. f4 {[%clk 0:02:33]}  Neg4 {[%clk 0:01:16]} 13. Nxc6 {[%clk 0:02:32]}  Qc7 {[%clk 0:01:16]} 14. Nxb4 {[%clk 0:02:23]}  Nxe4 {[%clk 0:01:12]} 15. Bb5+ {[%clk 0:02:07]}  Bd7 {[%clk 0:01:06]} 16. Nd5 {[%clk 0:02:07]}  Qd8 {[%clk 0:00:19]} 17. Bxd7+ {[%clk 0:02:05]}  Qxd7 {[%clk 0:00:19]} 18. Qg2 {[%clk 0:02:05]}  Nef6 {[%clk 0:00:17]} 19. Nxf6+ {[%clk 0:02:03]}  Nxf6 {[%clk 0:00:13]} 20. Qxa8+ {[%clk 0:02:04]} 1-0


[Site "https://www.chess.com"]

[Event "Titled Tuesday Blitz November 07 Early 2023"]
[White "Starozhilov, Leonid"]
[Black "Bettalli, Francesco"]
[WhiteFideId "14106752"]
[BlackFideId "2816453"]
[WhiteElo "2687"]
[BlackElo "2541"]
[Result "1-0"]
[Round "9"]
[TimeControl "180+1"]
[Date "2023.11.07"]
[WhiteClock "0:00:30"]
[BlackClock "0:00:37"]
[Board "55"]

1. e4 {[%clk 0:02:59]}  e5 {[%clk 0:02:54]} 2. Nc3 {[%clk 0:02:57]}  Nf6 {[%clk 0:02:54]} 3. Nf3 {[%clk 0:02:58]}  Bc5 {[%clk 0:02:53]} 4. Bc4 {[%clk 0:02:46]}  d6 {[%clk 0:02:52]} 5. h3 {[%clk 0:02:45]}  O-O {[%clk 0:02:53]} 6. d3 {[%clk 0:02:45]}  h6 {[%clk 0:02:53]} 7. a3 {[%clk 0:02:45]}  c6 {[%clk 0:02:53]} 8. O-O {[%clk 0:02:44]}  Nbd7 {[%clk 0:02:53]} 9. Be3 {[%clk 0:02:32]}  Re8 {[%clk 0:02:50]} 10. Re1 {[%clk 0:02:31]}  Bb6 {[%clk 0:02:50]} 11. Ba2 {[%clk 0:02:25]}  Nf8 {[%clk 0:02:49]} 12. d4 {[%clk 0:02:18]}  Ng6 {[%clk 0:02:47]} 13. Qd2 {[%clk 0:02:17]}  exd4 {[%clk 0:02:47]} 14. Bxd4 {[%clk 0:02:17]}  Bxd4 {[%clk 0:02:46]} 15. Qxd4 {[%clk 0:02:07]}  Nh5 {[%clk 0:02:39]} 16. Rad1 {[%clk 0:02:02]}  Nh4 {[%clk 0:02:05]} 17. Nxh4 {[%clk 0:01:51]}  Qxh4 {[%clk 0:02:06]} 18. Qxd6 {[%clk 0:01:36]}  Nf4 {[%clk 0:02:06]} 19. Re3 {[%clk 0:01:29]}  Be6 {[%clk 0:02:03]} 20. Rg3 {[%clk 0:01:01]}  Bxa2 {[%clk 0:02:01]} 21. Rg4 {[%clk 0:01:01]}  Nxh3+ {[%clk 0:01:38]} 22. gxh3 {[%clk 0:01:02]}  Qxh3 {[%clk 0:01:39]} 23. Rg3 {[%clk 0:00:49]}  Qe6 {[%clk 0:01:06]} 24. b3 {[%clk 0:00:43]}  Bxb3 {[%clk 0:01:00]} 25. cxb3 {[%clk 0:00:42]}  Qxb3 {[%clk 0:01:00]} 26. Qd4 {[%clk 0:00:39]}  g6 {[%clk 0:00:52]} 27. Nd5 {[%clk 0:00:38]}  Qxg3+ {[%clk 0:00:39]} 28. fxg3 {[%clk 0:00:38]}  cxd5 {[%clk 0:00:40]} 29. exd5 {[%clk 0:00:38]}  Rad8 {[%clk 0:00:40]} 30. d6 {[%clk 0:00:38]}  Re6 {[%clk 0:00:40]} 31. d7 {[%clk 0:00:38]}  Kf8 {[%clk 0:00:41]} 32. Qxa7 {[%clk 0:00:34]}  b6 {[%clk 0:00:37]} 33. Qc7 {[%clk 0:00:30]} 1-0


[Site "https://www.chess.com"]

[Event "Titled Tuesday Blitz November 07 Early 2023"]
[White "Harsh Suresh"]
[Black "Golubev, Mikhail"]
[WhiteFideId "45018464"]
[BlackFideId "14100983"]
[WhiteElo "2914"]
[BlackElo "2616"]
[Result "1-0"]
[Round "9"]
[TimeControl "180+1"]
[Date "2023.11.07"]
[WhiteClock "0:01:15"]
[BlackClock "0:00:14"]
[Board "59"]

1. d4 {[%clk 0:03:00]}  Nf6 {[%clk 0:02:59]} 2. Nf3 {[%clk 0:02:59]}  d6 {[%clk 0:02:58]} 3. g3 {[%clk 0:02:57]}  g6 {[%clk 0:02:58]} 4. Bg2 {[%clk 0:02:58]}  Bg7 {[%clk 0:02:59]} 5. O-O {[%clk 0:02:58]}  O-O {[%clk 0:02:59]} 6. c4 {[%clk 0:02:58]}  c5 {[%clk 0:02:57]} 7. d5 {[%clk 0:02:54]}  e6 {[%clk 0:02:55]} 8. Nc3 {[%clk 0:02:53]}  exd5 {[%clk 0:02:54]} 9. cxd5 {[%clk 0:02:54]}  Re8 {[%clk 0:02:55]} 10. Bf4 {[%clk 0:02:52]}  Nh5 {[%clk 0:02:22]} 11. Bg5 {[%clk 0:02:50]}  Bf6 {[%clk 0:02:23]} 12. Bc1 {[%clk 0:02:37]}  Nd7 {[%clk 0:02:13]} 13. Nd2 {[%clk 0:02:31]}  Nb6 {[%clk 0:02:01]} 14. a4 {[%clk 0:02:24]}  Bg7 {[%clk 0:01:45]} 15. a5 {[%clk 0:02:23]}  Nd7 {[%clk 0:01:45]} 16. Nde4 {[%clk 0:02:17]}  Ne5 {[%clk 0:01:27]} 17. Nb5 {[%clk 0:02:08]}  Nc4 {[%clk 0:01:26]} 18. Qa4 {[%clk 0:01:56]}  Nxb2 {[%clk 0:01:16]} 19. Bxb2 {[%clk 0:01:33]}  Bxb2 {[%clk 0:01:17]} 20. Ra2 {[%clk 0:01:34]}  Be5 {[%clk 0:01:10]} 21. Nbxd6 {[%clk 0:01:34]}  Bd7 {[%clk 0:01:02]} 22. Qc4 {[%clk 0:01:25]}  f5 {[%clk 0:00:48]} 23. Nxb7 {[%clk 0:01:18]}  Qe7 {[%clk 0:00:18]} 24. Nexc5 {[%clk 0:01:17]}  Rac8 {[%clk 0:00:18]} 25. d6+ {[%clk 0:01:16]}  Qe6 {[%clk 0:00:14]} 26. Bd5 {[%clk 0:01:15]} 1-0


[Site "https://www.chess.com"]

[Event "Titled Tuesday Blitz November 07 Early 2023"]
[White "AlmasRakhmatullaev"]
[Black "Tregubov, Pavel V."]
[BlackFideId "4115341"]
[WhiteElo "2863"]
[BlackElo "2613"]
[Result "1-0"]
[Round "9"]
[TimeControl "180+1"]
[Date "2023.11.07"]
[WhiteClock "0:00:21"]
[BlackClock "0:00:00"]
[Board "60"]

1. e4 {[%clk 0:03:00]}  c5 {[%clk 0:02:42]} 2. Nf3 {[%clk 0:03:00]}  e6 {[%clk 0:02:40]} 3. g3 {[%clk 0:03:00]}  d5 {[%clk 0:02:40]} 4. exd5 {[%clk 0:03:01]}  exd5 {[%clk 0:02:40]} 5. d4 {[%clk 0:03:02]}  Bg4 {[%clk 0:02:39]} 6. Bg2 {[%clk 0:03:00]}  Nc6 {[%clk 0:02:37]} 7. O-O {[%clk 0:03:00]}  Nxd4 {[%clk 0:02:36]} 8. Qe1+ {[%clk 0:03:00]}  Be7 {[%clk 0:02:32]} 9. Nxd4 {[%clk 0:02:58]}  cxd4 {[%clk 0:02:33]} 10. Qe5 {[%clk 0:02:54]}  Nf6 {[%clk 0:02:30]} 11. Re1 {[%clk 0:02:50]}  Rc8 {[%clk 0:02:22]} 12. Bg5 {[%clk 0:02:37]}  Be6 {[%clk 0:02:22]} 13. Nd2 {[%clk 0:02:25]}  O-O {[%clk 0:02:14]} 14. Rac1 {[%clk 0:02:23]}  h6 {[%clk 0:02:03]} 15. Bf4 {[%clk 0:02:09]}  g5 {[%clk 0:01:53]} 16. Bxg5 {[%clk 0:02:01]}  hxg5 {[%clk 0:01:53]} 17. Qxg5+ {[%clk 0:02:01]}  Kh8 {[%clk 0:01:53]} 18. Nf3 {[%clk 0:01:44]}  Rg8 {[%clk 0:01:48]} 19. Qf4 {[%clk 0:01:35]}  Nh7 {[%clk 0:01:35]} 20. h4 {[%clk 0:01:29]}  Qd6 {[%clk 0:01:23]} 21. Qxd4+ {[%clk 0:01:17]}  Bf6 {[%clk 0:01:23]} 22. Ne5 {[%clk 0:01:13]}  Qc5 {[%clk 0:01:08]} 23. Qf4 {[%clk 0:01:09]}  Rg7 {[%clk 0:00:51]} 24. c3 {[%clk 0:00:58]}  Rcg8 {[%clk 0:00:51]} 25. Kh2 {[%clk 0:00:55]}  Bd8 {[%clk 0:00:48]} 26. Bh3 {[%clk 0:00:47]}  Bxh3 {[%clk 0:00:29]} 27. Nxf7+ {[%clk 0:00:47]}  Rxf7 {[%clk 0:00:29]} 28. Qxf7 {[%clk 0:00:48]}  Bg4 {[%clk 0:00:08]} 29. Re8 {[%clk 0:00:40]}  Rxe8 {[%clk 0:00:08]} 30. Qxe8+ {[%clk 0:00:41]}  Qf8 {[%clk 0:00:08]} 31. Re1 {[%clk 0:00:41]}  Bb6 {[%clk 0:00:07]} 32. f3 {[%clk 0:00:33]}  Bf5 {[%clk 0:00:04]} 33. Qe5+ {[%clk 0:00:30]}  Qf6 {[%clk 0:00:03]} 34. Qxd5 {[%clk 0:00:28]}  Bg6 {[%clk 0:00:02]} 35. Qxb7 {[%clk 0:00:25]}  Nf8 {[%clk 0:00:00]} 36. f4 {[%clk 0:00:21]} 1-0


[Site "https://www.chess.com"]

[Event "Titled Tuesday Blitz November 07 Early 2023"]
[White "Mikhailovsky, Vladimir"]
[Black "OPQRC"]
[WhiteFideId "34105414"]
[WhiteElo "2813"]
[BlackElo "2565"]
[Result "1-0"]
[Round "9"]
[TimeControl "180+1"]
[Date "2023.11.07"]
[WhiteClock "0:00:05"]
[BlackClock "0:00:05"]
[Board "62"]

1. e4 {[%clk 0:03:00]}  c5 {[%clk 0:02:59]} 2. Nf3 {[%clk 0:03:01]}  e6 {[%clk 0:02:59]} 3. d4 {[%clk 0:02:59]}  cxd4 {[%clk 0:03:00]} 4. Nxd4 {[%clk 0:03:00]}  Nf6 {[%clk 0:03:00]} 5. Nc3 {[%clk 0:03:00]}  Nc6 {[%clk 0:03:01]} 6. Ndb5 {[%clk 0:02:58]}  Bb4 {[%clk 0:03:00]} 7. a3 {[%clk 0:02:58]}  Bxc3+ {[%clk 0:03:01]} 8. Nxc3 {[%clk 0:02:58]}  d5 {[%clk 0:03:00]} 9. exd5 {[%clk 0:02:59]}  exd5 {[%clk 0:03:01]} 10. Bd3 {[%clk 0:02:59]}  O-O {[%clk 0:03:01]} 11. O-O {[%clk 0:03:00]}  d4 {[%clk 0:03:01]} 12. Ne4 {[%clk 0:02:55]}  Bf5 {[%clk 0:03:01]} 13. Bg5 {[%clk 0:02:55]}  Bxe4 {[%clk 0:02:59]} 14. Bxe4 {[%clk 0:02:55]}  Qd6 {[%clk 0:02:59]} 15. Bxf6 {[%clk 0:02:24]}  Qxf6 {[%clk 0:02:58]} 16. Re1 {[%clk 0:02:25]}  Rad8 {[%clk 0:02:52]} 17. Qd3 {[%clk 0:02:23]}  g6 {[%clk 0:02:51]} 18. Rad1 {[%clk 0:02:23]}  Ne5 {[%clk 0:02:48]} 19. Qb5 {[%clk 0:02:17]}  b6 {[%clk 0:02:45]} 20. h3 {[%clk 0:02:00]}  Rfe8 {[%clk 0:02:39]} 21. Re2 {[%clk 0:01:49]}  Re6 {[%clk 0:02:08]} 22. Bd5 {[%clk 0:01:38]}  Qg5 {[%clk 0:01:44]} 23. a4 {[%clk 0:00:42]}  a6 {[%clk 0:00:58]} 24. Qb3 {[%clk 0:00:37]}  Red6 {[%clk 0:00:53]} 25. Rxd4 {[%clk 0:00:28]}  Rxd5 {[%clk 0:00:19]} 26. Rxd5 {[%clk 0:00:15]}  Qc1+ {[%clk 0:00:05]} 27. Kh2 {[%clk 0:00:12]}  Qf4+ {[%clk 0:00:06]} 28. g3 {[%clk 0:00:07]}  Nf3+ {[%clk 0:00:06]} 29. Kg2 {[%clk 0:00:07]}  Nh4+ {[%clk 0:00:05]} 30. gxh4 {[%clk 0:00:05]} 1-0


[Site "https://www.chess.com"]

[Event "Titled Tuesday Blitz November 07 Early 2023"]
[White "Rosen, Eric"]
[Black "Demin, Vladimir"]
[WhiteFideId "2032562"]
[BlackFideId "4167457"]
[WhiteElo "2734"]
[BlackElo "2561"]
[Result "1-0"]
[Round "9"]
[TimeControl "180+1"]
[Date "2023.11.07"]
[WhiteClock "0:00:06"]
[BlackClock "0:00:00"]
[Board "63"]

1. e4 {[%clk 0:03:00]}  e5 {[%clk 0:02:59]} 2. Nf3 {[%clk 0:03:01]}  Nc6 {[%clk 0:02:59]} 3. Nc3 {[%clk 0:03:01]}  Nf6 {[%clk 0:02:58]} 4. d4 {[%clk 0:03:02]}  exd4 {[%clk 0:02:58]} 5. Nxd4 {[%clk 0:03:03]}  Bb4 {[%clk 0:02:59]} 6. Nxc6 {[%clk 0:03:03]}  bxc6 {[%clk 0:02:58]} 7. Bd3 {[%clk 0:03:03]}  O-O {[%clk 0:02:59]} 8. O-O {[%clk 0:03:03]}  d5 {[%clk 0:02:58]} 9. Bd2 {[%clk 0:03:04]}  Re8 {[%clk 0:02:50]} 10. Nxd5 {[%clk 0:03:03]}  Nxd5 {[%clk 0:02:48]} 11. exd5 {[%clk 0:02:58]}  Bxd2 {[%clk 0:02:48]} 12. Qxd2 {[%clk 0:02:58]}  cxd5 {[%clk 0:02:47]} 13. b4 {[%clk 0:02:53]}  Qf6 {[%clk 0:02:39]} 14. Rad1 {[%clk 0:02:44]}  c6 {[%clk 0:02:35]} 15. c3 {[%clk 0:02:33]}  Bg4 {[%clk 0:02:26]} 16. f3 {[%clk 0:02:32]}  Bf5 {[%clk 0:02:26]} 17. Rfe1 {[%clk 0:02:18]}  h5 {[%clk 0:02:17]} 18. Re3 {[%clk 0:01:31]}  Kf8 {[%clk 0:01:27]} 19. Bxf5 {[%clk 0:01:29]}  Qxf5 {[%clk 0:01:26]} 20. Rde1 {[%clk 0:01:30]}  Re6 {[%clk 0:01:02]} 21. Rxe6 {[%clk 0:01:20]}  fxe6 {[%clk 0:01:03]} 22. Qe3 {[%clk 0:01:20]}  Kf7 {[%clk 0:01:02]} 23. Qc5 {[%clk 0:01:17]}  h4 {[%clk 0:00:45]} 24. Qxc6 {[%clk 0:01:14]}  Re8 {[%clk 0:00:46]} 25. Qc7+ {[%clk 0:01:03]}  Re7 {[%clk 0:00:46]} 26. Qe5 {[%clk 0:01:03]}  Qxe5 {[%clk 0:00:37]} 27. Rxe5 {[%clk 0:01:04]}  Rc7 {[%clk 0:00:38]} 28. Re3 {[%clk 0:01:01]}  Kf6 {[%clk 0:00:38]} 29. Kf2 {[%clk 0:00:59]}  e5 {[%clk 0:00:37]} 30. Rd3 {[%clk 0:00:57]}  Ke6 {[%clk 0:00:36]} 31. Ke3 {[%clk 0:00:55]}  g5 {[%clk 0:00:35]} 32. Kd2 {[%clk 0:00:48]}  Rg7 {[%clk 0:00:22]} 33. Re3 {[%clk 0:00:42]}  Kf5 {[%clk 0:00:19]} 34. a4 {[%clk 0:00:38]}  g4 {[%clk 0:00:19]} 35. Kd3 {[%clk 0:00:31]}  gxf3 {[%clk 0:00:10]} 36. Rxf3+ {[%clk 0:00:32]}  Ke6 {[%clk 0:00:10]} 37. Rf2 {[%clk 0:00:32]}  Rg4 {[%clk 0:00:09]} 38. a5 {[%clk 0:00:31]}  Rg7 {[%clk 0:00:02]} 39. b5 {[%clk 0:00:18]}  e4+ {[%clk 0:00:02]} 40. Kd4 {[%clk 0:00:18]}  Rc7 {[%clk 0:00:03]} 41. Rc2 {[%clk 0:00:13]}  Rc4+ {[%clk 0:00:03]} 42. Ke3 {[%clk 0:00:14]}  Ra4 {[%clk 0:00:04]} 43. c4 {[%clk 0:00:04]}  dxc4 {[%clk 0:00:03]} 44. Kxe4 {[%clk 0:00:04]}  Rxa5 {[%clk 0:00:03]} 45. Rxc4 {[%clk 0:00:02]}  Rxb5 {[%clk 0:00:04]} 46. Kf3 {[%clk 0:00:03]}  Rb3+ {[%clk 0:00:03]} 47. Kg4 {[%clk 0:00:03]}  h3 {[%clk 0:00:03]} 48. g3 {[%clk 0:00:02]}  a5 {[%clk 0:00:04]} 49. Kxh3 {[%clk 0:00:03]}  Rb4 {[%clk 0:00:04]} 50. Rc8 {[%clk 0:00:03]}  a4 {[%clk 0:00:03]} 51. Ra8 {[%clk 0:00:03]}  Kf6 {[%clk 0:00:03]} 52. Ra5 {[%clk 0:00:02]}  Kg6 {[%clk 0:00:03]} 53. g4 {[%clk 0:00:03]}  Rb3+ {[%clk 0:00:02]} 54. Kh4 {[%clk 0:00:03]}  a3 {[%clk 0:00:03]} 55. h3 {[%clk 0:00:04]}  Rc3 {[%clk 0:00:03]} 56. Ra6+ {[%clk 0:00:04]}  Kg7 {[%clk 0:00:03]} 57. Ra7+ {[%clk 0:00:04]}  Kg6 {[%clk 0:00:03]} 58. Ra4 {[%clk 0:00:04]}  Kh6 {[%clk 0:00:03]} 59. Ra6+ {[%clk 0:00:04]}  Kg7 {[%clk 0:00:03]} 60. g5 {[%clk 0:00:05]}  Rc4+ {[%clk 0:00:01]} 61. Kh5 {[%clk 0:00:06]}  Rc3 {[%clk 0:00:02]} 62. h4 {[%clk 0:00:06]}  Rc5 {[%clk 0:00:00]} 63. Rxa3 {[%clk 0:00:06]} 1-0


[Site "https://www.chess.com"]

[Event "Titled Tuesday Blitz November 07 Early 2023"]
[White "Tikhonov, Viacheslav"]
[Black "Atakhan, Abtin"]
[WhiteFideId "44196407"]
[BlackFideId "22502203"]
[WhiteElo "2557"]
[BlackElo "2713"]
[Result "0-1"]
[Round "9"]
[TimeControl "180+1"]
[Date "2023.11.07"]
[WhiteClock "0:00:00"]
[BlackClock "0:00:59"]
[Board "65"]

1. d4 {[%clk 0:03:00]}  Nf6 {[%clk 0:02:56]} 2. c4 {[%clk 0:03:01]}  g6 {[%clk 0:02:55]} 3. Nc3 {[%clk 0:03:00]}  d5 {[%clk 0:02:55]} 4. cxd5 {[%clk 0:02:53]}  Nxd5 {[%clk 0:02:56]} 5. Bd2 {[%clk 0:02:53]}  Bg7 {[%clk 0:02:53]} 6. e4 {[%clk 0:02:54]}  Nb6 {[%clk 0:02:54]} 7. Be3 {[%clk 0:02:53]}  Nc6 {[%clk 0:02:51]} 8. d5 {[%clk 0:02:51]}  Ne5 {[%clk 0:02:51]} 9. Rc1 {[%clk 0:02:32]}  O-O {[%clk 0:02:50]} 10. b3 {[%clk 0:02:32]}  c6 {[%clk 0:02:41]} 11. dxc6 {[%clk 0:02:23]}  bxc6 {[%clk 0:02:35]} 12. Nf3 {[%clk 0:02:15]}  Qxd1+ {[%clk 0:02:25]} 13. Nxd1 {[%clk 0:02:11]}  Nxf3+ {[%clk 0:02:21]} 14. gxf3 {[%clk 0:02:12]}  Bb7 {[%clk 0:02:08]} 15. Bd3 {[%clk 0:02:00]}  Nd7 {[%clk 0:02:07]} 16. f4 {[%clk 0:01:31]}  e5 {[%clk 0:02:00]} 17. O-O {[%clk 0:01:27]}  exf4 {[%clk 0:01:56]} 18. Bxf4 {[%clk 0:01:27]}  c5 {[%clk 0:01:44]} 19. Ne3 {[%clk 0:01:22]}  a5 {[%clk 0:01:34]} 20. Bb5 {[%clk 0:00:57]}  Ne5 {[%clk 0:01:27]} 21. f3 {[%clk 0:00:38]}  Rfd8 {[%clk 0:01:15]} 22. Rxc5 {[%clk 0:00:32]}  Nd3 {[%clk 0:01:15]} 23. Bxd3 {[%clk 0:00:27]}  Rxd3 {[%clk 0:01:16]} 24. e5 {[%clk 0:00:14]}  h6 {[%clk 0:01:02]} 25. h4 {[%clk 0:00:13]}  a4 {[%clk 0:01:01]} 26. b4 {[%clk 0:00:10]}  Bf8 {[%clk 0:01:01]} 27. Rc7 {[%clk 0:00:07]}  Ba6 {[%clk 0:01:00]} 28. Nc4 {[%clk 0:00:00]}  Rd4 {[%clk 0:00:59]} 0-1


[Site "https://www.chess.com"]

[Event "Titled Tuesday Blitz November 07 Early 2023"]
[White "Senthil Maran K"]
[Black "Wagner, Dennis"]
[WhiteFideId "25035681"]
[BlackFideId "24650684"]
[WhiteElo "2552"]
[BlackElo "2712"]
[Result "0-1"]
[Round "9"]
[TimeControl "180+1"]
[Date "2023.11.07"]
[WhiteClock "0:00:01"]
[BlackClock "0:00:12"]
[Board "66"]

1. d4 {[%clk 0:03:00]}  Nf6 {[%clk 0:02:59]} 2. c4 {[%clk 0:03:01]}  g6 {[%clk 0:02:59]} 3. g3 {[%clk 0:03:01]}  Bg7 {[%clk 0:02:59]} 4. Bg2 {[%clk 0:03:02]}  O-O {[%clk 0:02:59]} 5. Nf3 {[%clk 0:03:02]}  d5 {[%clk 0:02:58]} 6. cxd5 {[%clk 0:03:01]}  Nxd5 {[%clk 0:02:59]} 7. O-O {[%clk 0:03:02]}  Nb6 {[%clk 0:02:59]} 8. Nc3 {[%clk 0:03:02]}  Nc6 {[%clk 0:03:00]} 9. d5 {[%clk 0:03:03]}  Na5 {[%clk 0:02:59]} 10. Qc2 {[%clk 0:03:03]}  c6 {[%clk 0:02:57]} 11. dxc6 {[%clk 0:03:02]}  Nxc6 {[%clk 0:02:57]} 12. Rd1 {[%clk 0:03:03]}  Bd7 {[%clk 0:02:58]} 13. Be3 {[%clk 0:02:56]}  Nc4 {[%clk 0:02:39]} 14. Bc5 {[%clk 0:02:55]}  Qa5 {[%clk 0:02:23]} 15. Rxd7 {[%clk 0:02:07]}  Qxc5 {[%clk 0:02:22]} 16. Rxb7 {[%clk 0:02:08]}  Nxb2 {[%clk 0:02:18]} 17. Rxb2 {[%clk 0:01:44]}  Qxc3 {[%clk 0:02:18]} 18. Rab1 {[%clk 0:01:43]}  Rac8 {[%clk 0:01:48]} 19. Qxc3 {[%clk 0:01:34]}  Bxc3 {[%clk 0:01:49]} 20. Rb7 {[%clk 0:01:33]}  Ba5 {[%clk 0:01:40]} 21. Ng5 {[%clk 0:01:29]}  Bb6 {[%clk 0:01:30]} 22. Bxc6 {[%clk 0:01:24]}  Rxc6 {[%clk 0:01:31]} 23. Rxe7 {[%clk 0:01:25]}  Rc2 {[%clk 0:01:25]} 24. a4 {[%clk 0:01:25]}  Bd8 {[%clk 0:01:22]} 25. Rbb7 {[%clk 0:01:00]}  Bxe7 {[%clk 0:01:22]} 26. Rxe7 {[%clk 0:01:01]}  a5 {[%clk 0:01:23]} 27. Ra7 {[%clk 0:00:55]}  Rxe2 {[%clk 0:01:05]} 28. Rxa5 {[%clk 0:00:53]}  h6 {[%clk 0:01:04]} 29. Nf3 {[%clk 0:00:53]}  Rc8 {[%clk 0:00:51]} 30. Ra7 {[%clk 0:00:44]}  Ra2 {[%clk 0:00:51]} 31. Nd4 {[%clk 0:00:42]}  Rc4 {[%clk 0:00:47]} 32. Nb5 {[%clk 0:00:40]}  Rcxa4 {[%clk 0:00:45]} 33. Rd7 {[%clk 0:00:39]}  Rb4 {[%clk 0:00:39]} 34. Nc3 {[%clk 0:00:30]}  Rc2 {[%clk 0:00:34]} 35. Nd1 {[%clk 0:00:22]}  Rb1 {[%clk 0:00:33]} 36. Kg2 {[%clk 0:00:21]}  Kg7 {[%clk 0:00:32]} 37. Ne3 {[%clk 0:00:20]}  Ra2 {[%clk 0:00:32]} 38. Rd4 {[%clk 0:00:20]}  Rbb2 {[%clk 0:00:32]} 39. Rf4 {[%clk 0:00:20]}  f5 {[%clk 0:00:32]} 40. h4 {[%clk 0:00:20]}  Kf6 {[%clk 0:00:32]} 41. h5 {[%clk 0:00:20]}  Rb5 {[%clk 0:00:18]} 42. hxg6 {[%clk 0:00:20]}  Kxg6 {[%clk 0:00:19]} 43. Rh4 {[%clk 0:00:20]}  Re5 {[%clk 0:00:17]} 44. Kf3 {[%clk 0:00:19]}  Ra3 {[%clk 0:00:17]} 45. Rb4 {[%clk 0:00:19]}  Ra6 {[%clk 0:00:17]} 46. Rf4 {[%clk 0:00:18]}  Rae6 {[%clk 0:00:17]} 47. Rd4 {[%clk 0:00:18]}  Re4 {[%clk 0:00:17]} 48. Rd5 {[%clk 0:00:18]}  R4e5 {[%clk 0:00:16]} 49. Rd3 {[%clk 0:00:17]}  h5 {[%clk 0:00:17]} 50. Ng2 {[%clk 0:00:18]}  Kg5 {[%clk 0:00:15]} 51. Rd8 {[%clk 0:00:16]}  Ra6 {[%clk 0:00:15]} 52. Nf4 {[%clk 0:00:16]}  Ra3+ {[%clk 0:00:14]} 53. Kg2 {[%clk 0:00:17]}  h4 {[%clk 0:00:11]} 54. Rg8+ {[%clk 0:00:17]}  Kf6 {[%clk 0:00:11]} 55. Ng6 {[%clk 0:00:15]}  Kf7 {[%clk 0:00:09]} 56. Nxe5+ {[%clk 0:00:12]}  Kxg8 {[%clk 0:00:09]} 57. gxh4 {[%clk 0:00:12]}  Kg7 {[%clk 0:00:10]} 58. Nf3 {[%clk 0:00:12]}  Kg6 {[%clk 0:00:10]} 59. Kg3 {[%clk 0:00:13]}  Ra4 {[%clk 0:00:09]} 60. Nd2 {[%clk 0:00:07]}  Rg4+ {[%clk 0:00:08]} 61. Kf3 {[%clk 0:00:07]}  Rxh4 {[%clk 0:00:08]} 62. Nf1 {[%clk 0:00:08]}  Kg5 {[%clk 0:00:08]} 63. Ne3 {[%clk 0:00:09]}  Rf4+ {[%clk 0:00:09]} 64. Kg3 {[%clk 0:00:09]}  Re4 {[%clk 0:00:10]} 65. Kf3 {[%clk 0:00:09]}  Ra4 {[%clk 0:00:09]} 66. Ng2 {[%clk 0:00:10]}  Ra3+ {[%clk 0:00:10]} 67. Ke2 {[%clk 0:00:10]}  Kg4 {[%clk 0:00:10]} 68. Ne3+ {[%clk 0:00:10]}  Kf4 {[%clk 0:00:11]} 69. Nd5+ {[%clk 0:00:10]}  Ke4 {[%clk 0:00:11]} 70. Nf6+ {[%clk 0:00:11]}  Kd4 {[%clk 0:00:11]} 71. Kf1 {[%clk 0:00:10]}  f4 {[%clk 0:00:10]} 72. Kg2 {[%clk 0:00:10]}  Ke5 {[%clk 0:00:10]} 73. Nd7+ {[%clk 0:00:09]}  Kf5 {[%clk 0:00:11]} 74. Nb6 {[%clk 0:00:10]}  Kg4 {[%clk 0:00:11]} 75. Nc4 {[%clk 0:00:10]}  f3+ {[%clk 0:00:11]} 76. Kh2 {[%clk 0:00:09]}  Ra2 {[%clk 0:00:12]} 77. Kg1 {[%clk 0:00:09]}  Ra1+ {[%clk 0:00:11]} 78. Kh2 {[%clk 0:00:09]}  Re1 {[%clk 0:00:12]} 79. Ne3+ {[%clk 0:00:08]}  Kf4 {[%clk 0:00:12]} 80. Nd5+ {[%clk 0:00:07]}  Ke4 {[%clk 0:00:10]} 81. Ne3 {[%clk 0:00:07]}  Rxe3 {[%clk 0:00:10]} 82. fxe3 {[%clk 0:00:07]}  Kxe3 {[%clk 0:00:11]} 83. Kg1 {[%clk 0:00:01]}  Ke2 {[%clk 0:00:12]} 0-1


[Site "https://www.chess.com"]